fUSD/lending_fUSD_20250108
["ID","MTS","AMOUNT","RATE_DAILY","PERIOD"]
[348101457,1736312530853,-1012.29,0.0001225,5]
[348101458,1736312530877,-1010.76,0.0001225,5]
[348101459,1736312530901,-1010.21,0.0001225,5]
[348101460,1736312530926,-995.59,0.0001225,5]
[348101461,1736312530949,-1004.03,0.0001225,5]
[348101462,1736312530972,-1017.47,0.0001225,5]
[348101463,1736312530994,-980.53,0.0001225,5]
[348101464,1736312531020,-1016.36,0.0001225,5]
[348101465,1736312531049,-1013.32,0.0001225,5]
[348101466,1736312531073,-983.08,0.0001225,5]
[348101467,1736312531098,-992.26,0.0001225,5]
[348101468,1736312531126,-988.88,0.0001225,5]
[348101469,1736312531150,-988.92,0.0001225,5]
[348101470,1736312531174,-1010.85,0.0001225,5]
[348101471,1736312531199,-1017.59,0.0001225,5]
[348101472,1736312531223,-991.03,0.0001225,5]
[348101473,1736312531248,-992.71,0.0001225,5]
[348101474,1736312531274,-989.28,0.0001225,5]
[348101475,1736312531300,-1005.77,0.0001225,5]
[348101476,1736312531324,-1017.56,0.0001225,5]
[348101477,1736312531348,-1002.37,0.0001225,5]
[348101478,1736312531373,-990.98,0.0001225,5]
[348101479,1736312531398,-1017.69,0.0001225,5]
[348101480,1736312531421,-1007.88,0.0001225,5]
[348101481,1736312531445,-150.0,0.00012256,2]
[348101482,1736312531469,-150.0,0.00012257,2]
[348101483,1736312531492,-1500.0,0.0001226,2]
[348101484,1736312531515,-400.0,0.0001227,2]
[348101485,1736312531538,-150.60824624,0.0001227,2]
[348101486,1736312531562,-1066.08242253,0.00012272,2]
[348101487,1736312531586,-1500.0,0.00012273,2]
[348101488,1736312531610,-150.0,0.00012275,2]
[348101489,1736312531638,-150.0,0.00012278,2]
[348101490,1736312531664,-336.92921106,0.00012279,2]
[348101491,1736312531689,-183.87465787,0.00012283,2]
[348101492,1736312531714,-150.0,0.00012284,2]
[348101493,1736312531738,-1500.0,0.0001229,2]
[348101494,1736312531763,-3424.3751888,0.00012296,2]
[348101495,1736312531788,-11904.1670532,0.00012296,2]
[348101496,1736312531812,-7325.2523904,0.00012296,2]
[348101497,1736312531836,-201.0,0.00012299,2]
[348101498,1736312531860,-500.0,0.00012299,2]
[348101499,1736312531884,-500.0,0.00012299,2]
[348101500,1736312531908,-500.0,0.00012299,2]
[348101501,1736312531929,-500.0,0.00012299,2]
[348101502,1736312531951,-500.0,0.00012299,2]
[348101503,1736312531973,-500.0,0.00012299,2]
[348101504,1736312531995,-653.09,0.00012299,2]
[348101505,1736312532018,-500.0,0.00012299,2]
[348101506,1736312532176,-500.0,0.00012299,2]
[348101507,1736312532201,-249.624738,0.00012299,2]
[348101508,1736312532228,-1249.69,0.00012299,2]
[348101509,1736312532253,-259.998718,0.00012299,2]
[348101510,1736312532277,-500.0,0.00012299,2]
[348101511,1736312532302,-1377.83,0.00012299,2]
[348101512,1736312532326,-500.0,0.00012299,2]
[348101513,1736312532352,-500.0,0.00012299,2]
[348101514,1736312532379,-1142136.06445756,0.000123,4]
[348101515,1736312557078,-500.0,9.999e-05,2]
[348101516,1736312557105,-573.8,9.999e-05,2]
[348101517,1736312557131,-500.0,9.999e-05,2]
[348101518,1736312557159,-1477.43,9.999e-05,2]
[348101519,1736312557185,-500.0,9.999e-05,2]
[348101520,1736312557211,-500.0,9.999e-05,2]
[348101521,1736312557238,-500.0,9.999e-05,2]
[348101522,1736312557267,-543.45,9.999e-05,2]
[348101523,1736312557297,-500.0,9.999e-05,2]
[348101524,1736312557322,-566.98,9.999e-05,2]
[348101525,1736312561891,500.0,9.999e-05,2]
[348101526,1736312564634,500.0,9.999e-05,2]
[348101527,1736312574188,500.0,9.999e-05,2]
[348101528,1736312578341,500.0,9.999e-05,2]
[348101529,1736312580783,14779.26896914,9.999e-05,4]
[348101530,1736312588714,798.55,9.999e-05,2]
[348101531,1736312613981,839.05,9.999e-05,2]
[348101532,1736312616159,822.71,9.999e-05,2]
[348101533,1736312616271,997.75,9.079e-05,2]
[348101534,1736312618493,500.0,9.999e-05,2]
[348101535,1736312634222,500.0,9.999e-05,2]
[348101536,1736312643215,500.0,9.999e-05,2]
[348101537,1736312645392,1852.6,9.999e-05,2]
[348101538,1736312647193,500.0,9.999e-05,2]
[348101539,1736312656746,500.0,9.999e-05,2]
[348101540,1736312656789,500.0,9.999e-05,2]
[348101541,1736312664642,500.0,9.999e-05,2]
[348101542,1736312674351,1432.94,9.999e-05,2]
[348101543,1736312696122,1400.82,9.999e-05,2]
[348101544,1736312697210,500.0,9.999e-05,2]
[348101545,1736312703537,1000.0,0.0002,120]
[348101546,1736312708127,1527.27,9.999e-05,2]
[348101547,1736312708584,500.0,9.999e-05,2]
[348101548,1736312710417,1084.03,9.999e-05,2]
[348101549,1736312724464,500.0,9.999e-05,2]
[348101550,1736312729512,1342.45,9.999e-05,2]
[348101551,1736312736389,589.34,9.999e-05,2]
[348101552,1736312738779,500.0,9.999e-05,2]
[348101553,1736312742495,500.0,9.999e-05,2]
[348101554,1736312743797,500.0,9.999e-05,2]
[348101555,1736312751679,500.0,9.999e-05,2]
[348101556,1736312756575,500.0,9.999e-05,2]
[348101558,1736312772942,564.78,9.999e-05,2]
[348101559,1736312779291,765.28,9.999e-05,2]
[348101560,1736312783353,915.4,9.999e-05,2]
[348101561,1736312787770,617.06,9.999e-05,2]
[348101562,1736312789212,500.0,9.999e-05,2]
[348101564,1736312797120,500.0,9.999e-05,2]
[348101565,1736312800642,500.0,9.999e-05,2]
[348101566,1736312814999,1038.86,9.999e-05,2]
[348101567,1736312818133,877.26,9.999e-05,2]
[348101568,1736312829130,500.0,9.999e-05,2]
[348101569,1736312831122,500.0,9.999e-05,2]
[348101573,1736312838853,500.0,9.999e-05,2]
[348101574,1736312841358,869.52,9.999e-05,2]
[348101576,1736312849182,600.86,9.999e-05,2]
[348101577,1736312853786,733.39,9.999e-05,2]
[348101578,1736312854992,500.0,9.999e-05,2]
[348101579,1736312856644,500.0,9.999e-05,2]
[348101580,1736312858904,500.0,9.999e-05,2]
[348101581,1736312867459,500.0,9.999e-05,2]
[348101582,1736312867918,500.0,9.999e-05,2]
[348101583,1736312890139,500.0,9.999e-05,2]
[348101584,1736312897631,500.0,9.999e-05,2]
[348101585,1736312897925,500.0,9.999e-05,2]
[348101586,1736312901617,2865.06,9.999e-05,2]
[348101587,1736312913774,1016.54,9.999e-05,2]
[348101588,1736312916298,1286.52,9.999e-05,2]
[348101589,1736312932349,500.0,9.999e-05,2]
[348101590,1736312932408,500.0,9.999e-05,2]
[348101591,1736312934313,500.0,9.999e-05,2]
[348101984,1736312959250,541.25,9.999e-05,2]
[348101985,1736312959980,974.19,9.999e-05,2]
[348101986,1736312960487,500.0,9.999e-05,2]
[348101987,1736312961677,500.0,9.999e-05,2]
[348101988,1736312966101,500.0,9.999e-05,2]
[348101989,1736312981682,500.0,9.999e-05,2]
[348101990,1736312988785,1232.91,9.999e-05,2]
[348101991,1736312993073,2745.69,9.999e-05,2]
[348101992,1736312995886,840.71,9.999e-05,2]
[348101993,1736313007010,500.0,9.999e-05,2]
[348101994,1736313008362,500.0,9.999e-05,2]
[348101995,1736313008959,500.0,9.999e-05,2]
[348101996,1736313010774,500.0,9.999e-05,2]
[348101997,1736313011103,154.374238,9.436e-05,2]
[348101998,1736313011444,154.374238,9.71e-05,2]
[348101999,1736313011828,518.7,9.999e-05,2]
[348102000,1736313011872,154.374238,9.822e-05,2]
[348102001,1736313012207,154.374238,9.972e-05,2]
[348102002,1736313012526,154.374238,9.972e-05,2]
[348102003,1736313012853,154.374238,9.984e-05,2]
[348102004,1736313013169,154.374238,9.997e-05,2]
[348102005,1736313013482,154.374238,9.998e-05,2]
[348102006,1736313013794,154.374238,9.999e-05,2]
[348102007,1736313014035,500.0,9.999e-05,2]
[348102008,1736313014123,154.374238,9.999e-05,2]
[348102009,1736313014436,154.374238,9.999e-05,2]
[348102010,1736313014509,500.0,9.999e-05,2]
[348102011,1736313019520,500.0,9.999e-05,2]
[348102012,1736313019948,532.54,9.999e-05,2]
[348102013,1736313020899,500.0,9.999e-05,2]
[348102014,1736313029397,500.0,9.999e-05,2]
[348102015,1736313029866,500.0,9.999e-05,2]
[348102021,1736313031660,-1174.689986,0.00010122,2]
[348102022,1736313031670,-500.0,0.00010173,2]
[348102023,1736313031680,-154.374238,0.00010245,2]
[348102024,1736313031690,-154.374238,0.00010258,2]
[348102025,1736313031699,-154.374238,0.00010271,2]
[348102026,1736313031710,-150.0,0.00010272,2]
[348102027,1736313031721,-300.0,0.00010272,2]
[348102028,1736313031731,-154.374238,0.00010272,2]
[348102029,1736313031742,-293.72083001,0.00010273,2]
[348102030,1736313031752,-500.0,0.00010273,2]
[348102031,1736313031761,-500.0,0.00010273,2]
[348102032,1736313031771,-839.05,0.00010273,2]
[348102033,1736313031781,-500.0,0.00010273,2]
[348102034,1736313031791,-1852.6,0.00010273,2]
[348102035,1736313031800,-405.68863232,0.00010273,2]
[348102036,1736313031810,-1038.86,0.00010273,2]
[348102037,1736313031819,-500.0,0.00010273,2]
[348102038,1736313031829,-733.39,0.00010273,2]
[348102039,1736313031843,-500.0,0.00010273,2]
[348102040,1736313031853,-500.0,0.00010273,2]
[348102041,1736313031867,-500.0,0.00010273,2]
[348102042,1736313031876,-500.0,0.00010273,2]
[348102043,1736313031887,-500.0,0.00010273,2]
[348102044,1736313031896,-974.19,0.00010273,2]
[348102045,1736313031906,-500.0,0.00010273,2]
[348102046,1736313031916,-1232.91,0.00010273,2]
[348102047,1736313031925,-1942.30359967,0.00010273,2]
[348102048,1736313031968,-442.12,0.00010273,2]
[348102049,1736313031984,-361.26640033,0.00010273,2]
[348102050,1736313031994,-491.92696967,0.00010273,2]
[348102051,1736313032014,-8.07303033,0.00010273,2]
[348102052,1736313032026,-632.18119202,0.00010273,2]
[348102053,1736313032036,-500.0,0.00010273,2]
[348102054,1736313032046,-500.0,0.00010273,2]
[348102055,1736313032056,-345.62577765,0.00010273,2]
[348102056,1736313032075,-173.07422235,0.00010273,2]
[348102057,1736313032084,-500.0,0.00010273,2]
[348102058,1736313032095,-500.0,0.00010273,2]
[348102059,1736313032104,-500.0,0.00010273,2]
[348102060,1736313032117,-532.54,0.00010273,2]
[348102061,1736313032127,-500.0,0.00010273,2]
[348102062,1736313032137,-500.0,0.00010273,2]
[348102063,1736313032147,-500.0,0.00010273,2]
[348102064,1736313032156,-154.374238,0.0001037,2]
[348102065,1736313032166,-154.374238,0.00010519,2]
[348102066,1736313032176,-154.374238,0.00010532,2]
[348102067,1736313032190,-500.0,0.00010546,2]
[348102068,1736313032202,-500.0,0.00010546,2]
[348102069,1736313032211,-500.0,0.00010546,2]
[348102070,1736313032221,-500.0,0.00010546,2]
[348102071,1736313032230,-500.0,0.00010546,2]
[348102072,1736313032239,-504.17217169,0.00010546,2]
[348102073,1736313032253,-500.0,0.00010546,2]
[348102074,1736313032263,-500.0,0.00010546,2]
[348102075,1736313032273,-500.0,0.00010546,2]
[348102076,1736313032282,-500.0,0.00010546,2]
[348102077,1736313032293,-500.0,0.00010546,2]
[348102078,1736313032579,-500.0,0.00010546,2]
[348102079,1736313032588,-500.0,0.00010546,2]
[348102080,1736313032599,-271.09,0.00010546,2]
[348102081,1736313032609,-500.0,0.00010546,2]
[348102082,1736313032619,-500.0,0.00010546,2]
[348102083,1736313032629,-500.0,0.00010546,2]
[348102084,1736313032639,-500.0,0.00010546,2]
[348102085,1736313032649,-500.0,0.00010546,2]
[348102086,1736313032659,-500.0,0.00010546,2]
[348102087,1736313032669,-500.0,0.00010546,2]
[348102088,1736313032678,-500.0,0.00010546,2]
[348102089,1736313032688,-326.83271624,0.00010546,2]
[348102090,1736313032698,-500.0,0.00010546,2]
[348102091,1736313032707,-500.0,0.00010546,2]
[348102092,1736313032717,-500.0,0.00010546,2]
[348102093,1736313032727,-500.0,0.00010546,2]
[348102094,1736313032737,-500.0,0.00010546,2]
[348102095,1736313032746,-507.49391176,0.00010546,2]
[348102096,1736313032756,-500.0,0.00010546,2]
[348102097,1736313032766,-594.89,0.00010546,2]
[348102098,1736313032783,-500.0,0.00010546,2]
[348102099,1736313032796,-500.0,0.00010546,2]
[348102100,1736313032806,-500.0,0.00010546,2]
[348102101,1736313032816,-500.0,0.00010546,2]
[348102102,1736313032827,-500.0,0.00010546,2]
[348102103,1736313032837,-500.0,0.00010546,2]
[348102104,1736313032847,-500.0,0.00010546,2]
[348102105,1736313032857,-500.0,0.00010546,2]
[348102106,1736313032869,-500.0,0.00010546,2]
[348102107,1736313032879,-500.0,0.00010546,2]
[348102108,1736313032891,-501.29325176,0.00010546,2]
[348102109,1736313032901,-489.68980082,0.00010546,2]
[348102110,1736313032911,-500.0,0.00010546,2]
[348102111,1736313032921,-500.0,0.00010546,2]
[348102112,1736313032932,-500.0,0.00010546,2]
[348102113,1736313032942,-607.83,0.00010546,2]
[348102114,1736313032953,-500.0,0.00010546,2]
[348102115,1736313032963,-500.0,0.00010546,2]
[348102116,1736313032973,-500.0,0.00010546,2]
[348102117,1736313032982,-1365.27,0.00010546,2]
[348102118,1736313032992,-504.21743798,0.00010546,2]
[348102119,1736313033002,-500.0,0.00010546,2]
[348102120,1736313033012,-501.86969843,0.00010546,2]
[348102121,1736313033022,-500.0,0.00010546,2]
[348102122,1736313033032,-500.0,0.00010546,2]
[348102123,1736313033042,-500.0,0.00010546,2]
[348102124,1736313033052,-500.0,0.00010546,2]
[348102125,1736313033062,-503.10021061,0.00010546,2]
[348102126,1736313033073,-500.0,0.00010546,2]
[348102127,1736313033084,-500.0,0.00010546,2]
[348102128,1736313033094,-500.0,0.00010546,2]
[348102129,1736313033104,-500.0,0.00010546,2]
[348102130,1736313033115,-500.0,0.00010546,2]
[348102131,1736313033127,-500.77904926,0.00010546,2]
[348102132,1736313033138,-500.0,0.00010546,2]
[348102133,1736313033149,-500.0,0.00010546,2]
[348102134,1736313033160,-500.0,0.00010546,2]
[348102135,1736313033169,-500.0,0.00010546,2]
[348102136,1736313033179,-500.0,0.00010546,2]
[348102137,1736313033189,-500.0,0.00010546,2]
[348102138,1736313033202,-500.0,0.00010546,2]
[348102139,1736313033219,-500.0,0.00010546,2]
[348102140,1736313033229,-500.0,0.00010546,2]
[348102141,1736313033238,-500.0,0.00010546,2]
[348102142,1736313033254,-564.59,0.00010546,2]
[348102143,1736313033271,-500.0,0.00010546,2]
[348102144,1736313033282,-556.72216282,0.00010546,2]
[348102145,1736313033292,-500.0,0.00010546,2]
[348102146,1736313033302,-500.0,0.00010546,2]
[348102147,1736313033312,-500.0,0.00010546,2]
[348102148,1736313033322,-500.0,0.00010546,2]
[348102149,1736313033332,-500.0,0.00010546,2]
[348102150,1736313033342,-367.92265228,0.00010546,2]
[348102151,1736313033465,500.0,9.999e-05,2]
[348102152,1736313033533,805.68,9.999e-05,2]
[348102153,1736313035718,-500.0,0.00010273,2]
[348102154,1736313035729,-591.0150386,0.00010273,2]
[348102178,1736313037630,-214.6649614,0.00010273,2]
[348102179,1736313037641,-132.07734772,0.00010546,2]
[348102180,1736313037650,-500.0,0.00010546,2]
[348102181,1736313037659,-474.49633632,0.00010546,2]
[348102182,1736313037691,-25.50366368,0.00010546,2]
[348102183,1736313037701,-500.0,0.00010546,2]
[348102184,1736313037711,-154.374238,0.00010546,2]
[348102185,1736313037720,-509.00609673,0.00010546,2]
[348102186,1736313037730,-500.0,0.00010546,2]
[348102187,1736313037739,-47.57635204,0.00010546,2]
[348102188,1736313037758,-452.42364796,0.00010546,2]
[348102189,1736313037771,-500.0,0.00010546,2]
[348102190,1736313037783,-500.0,0.00010546,2]
[348102191,1736313037795,-500.0,0.00010546,2]
[348102192,1736313037806,-500.0,0.00010546,2]
[348102193,1736313037817,-500.45086475,0.00010546,2]
[348102194,1736313037827,-500.0,0.00010546,2]
[348102195,1736313037839,-327.08794633,0.00010547,2]
[348102196,1736313037854,-172.91205367,0.00010547,2]
[348102197,1736313037866,-500.0,0.00010547,2]
[348102198,1736313037879,-839.05,0.00010547,2]
[348102199,1736313037890,-500.0,0.00010547,2]
[348102200,1736313037901,-1852.6,0.00010547,2]
[348102202,1736313037912,-1038.86,0.00010547,2]
[348102205,1736313037924,-500.0,0.00010547,2]
[348102207,1736313037935,-733.39,0.00010547,2]
[348102209,1736313037946,-500.0,0.00010547,2]
[348102211,1736313037959,-500.0,0.00010547,2]
[348102214,1736313037972,-500.0,0.00010547,2]
[348102216,1736313037983,-500.0,0.00010547,2]
[348102218,1736313037994,-500.0,0.00010547,2]
[348102220,1736313038005,-974.19,0.00010547,2]
[348102222,1736313038015,-500.0,0.00010547,2]
[348102224,1736313038026,-1232.91,0.00010547,2]
[348102226,1736313038036,-2745.69,0.00010547,2]
[348102228,1736313038046,-500.0,0.00010547,2]
[348102230,1736313038059,-500.0,0.00010547,2]
[348102233,1736313038071,-500.0,0.00010547,2]
[348102235,1736313038083,-518.7,0.00010547,2]
[348102237,1736313038094,-500.0,0.00010547,2]
[348102239,1736313038106,-500.0,0.00010547,2]
[348102241,1736313038118,-500.0,0.00010547,2]
[348102244,1736313038131,-532.54,0.00010547,2]
[348102246,1736313038143,-500.0,0.00010547,2]
[348102248,1736313038155,-500.0,0.00010547,2]
[348102250,1736313038167,-500.0,0.00010547,2]
[348102252,1736313038186,-500.0,0.00010547,2]
[348102255,1736313038205,-805.68,0.00010547,2]
[348102257,1736313038217,-508.04,0.00010547,2]
[348102259,1736313038229,-154.374238,0.00010644,2]
[348102261,1736313038241,-154.374238,0.00010793,2]
[348102263,1736313038259,-154.374238,0.00010806,2]
[348102265,1736313038271,-500.0,0.0001082,2]
[348102267,1736313038283,-242.20587882,0.0001082,2]
[348102270,1736313038300,-257.79412118,0.0001082,2]
[348102272,1736313038311,-499.89182497,0.0001082,2]
[348102279,1736313038373,-0.10817503,0.0001082,2]
[348102282,1736313038385,-500.0,0.0001082,2]
[348102284,1736313038397,-500.0,0.0001082,2]
[348102286,1736313038408,-500.0,0.0001082,2]
[348102288,1736313038421,-500.0,0.0001082,2]
[348102290,1736313038432,-500.0,0.0001082,2]
[348102293,1736313038444,-500.0,0.0001082,2]
[348102295,1736313038455,-500.0,0.0001082,2]
[348102297,1736313038466,-500.0,0.0001082,2]
[348102299,1736313038478,-500.0,0.0001082,2]
[348102301,1736313038487,-500.0,0.0001082,2]
[348102303,1736313038497,-357.94381196,0.0001082,2]
[348102323,1736313039769,-335.22439713,0.00010546,2]
[348102324,1736313039827,-304.80045341,0.00010546,2]
[348102325,1736313039884,-645.78053994,0.00010546,2]
[348102326,1736313039896,-233.98186116,0.00010615,2]
[348102327,1736313039909,-16.01813884,0.00010615,2]
[348102328,1736313039920,-142.05618804,0.0001082,2]
[348102329,1736313039932,-500.0,0.0001082,2]
[348102330,1736313039942,-288.28567312,0.0001082,2]
[348102340,1736313043220,-500.0,0.00010546,2]
[348102341,1736313043231,-211.71432688,0.0001082,2]
[348102342,1736313043242,-254.26665312,0.0001082,2]
[348102343,1736313043257,-379.24441268,0.0001082,2]
[348102344,1736313043269,-270.75558732,0.0001082,2]
[348102345,1736313043301,-229.24441268,0.0001082,2]
[348102346,1736313043312,-500.0,0.0001082,2]
[348102347,1736313043322,-41.4517233,0.0001082,2]
[348102348,1736313043337,-458.5482767,0.0001082,2]
[348102349,1736313043348,-152.43823993,0.0001082,2]
[348102350,1736313043361,-347.56176007,0.0001082,2]
[348102351,1736313043373,-498.54349297,0.0001082,2]
[348102352,1736313043391,-1.45650703,0.0001082,2]
[348102353,1736313043402,-500.0,0.0001082,2]
[348102354,1736313043412,-500.0,0.0001082,2]
[348102355,1736313043423,-500.0,0.0001082,2]
[348102356,1736313043433,-500.0,0.0001082,2]
[348102357,1736313043443,-500.0,0.0001082,2]
[348102358,1736313043454,-325.18,0.0001082,2]
[348102359,1736313043464,-500.0,0.0001082,2]
[348102360,1736313043475,-637.78,0.0001082,2]
[348102361,1736313043485,-500.0,0.0001082,2]
[348102362,1736313043496,-1365.27,0.0001082,2]
[348102363,1736313043506,-500.0,0.0001082,2]
[348102364,1736313043516,-500.0,0.0001082,2]
[348102365,1736313043527,-500.0,0.0001082,2]
[348102366,1736313043537,-648.79250292,0.0001082,2]
[348102367,1736313043548,-500.0,0.0001082,2]
[348102368,1736313043559,-475.17743529,0.0001082,2]
[348102369,1736313043570,-500.0,0.0001082,2]
[348102370,1736313043582,-500.0,0.0001082,2]
[348102371,1736313043592,-481.14689162,0.0001082,2]
[348102372,1736313043603,-500.0,0.0001082,2]
[348102373,1736313043616,-268.22,0.0001082,2]
[348102375,1736313043626,-154.374238,0.0001082,2]
[348102377,1736313043637,-500.0,0.0001082,2]
[348102379,1736313043647,-500.0,0.0001082,2]
[348102381,1736313043658,-500.0,0.0001082,2]
[348102383,1736313043668,-500.0,0.0001082,2]
[348102385,1736313043678,-500.0,0.00010821,2]
[348102387,1736313043689,-500.0,0.00010821,2]
[348102389,1736313043699,-839.05,0.00010821,2]
[348102391,1736313043710,-500.0,0.00010821,2]
[348102394,1736313043720,-1852.6,0.00010821,2]
[348102396,1736313043730,-1038.86,0.00010821,2]
[348102398,1736313043739,-500.0,0.00010821,2]
[348102400,1736313043748,-733.39,0.00010821,2]
[348102402,1736313043758,-500.0,0.00010821,2]
[348102404,1736313043767,-500.0,0.00010821,2]
[348102406,1736313043777,-500.0,0.00010821,2]
[348102417,1736313044087,-500.0,0.00010821,2]
[348102418,1736313044108,-500.0,0.00010821,2]
[348102419,1736313044128,-974.19,0.00010821,2]
[348102420,1736313044138,-500.0,0.00010821,2]
[348102421,1736313044148,-1232.91,0.00010821,2]
[348102422,1736313044158,-2745.69,0.00010821,2]
[348102423,1736313044167,-500.0,0.00010821,2]
[348102424,1736313044177,-500.0,0.00010821,2]
[348102425,1736313044186,-206.86,0.00010821,2]
[348102426,1736313044196,-518.7,0.00010821,2]
[348102427,1736313044205,-500.0,0.00010821,2]
[348102428,1736313044218,-500.0,0.00010821,2]
[348102429,1736313044228,-500.0,0.00010821,2]
[348102430,1736313044238,-532.54,0.00010821,2]
[348102431,1736313044247,-500.0,0.00010821,2]
[348102432,1736313044258,-500.0,0.00010821,2]
[348102433,1736313044268,-500.0,0.00010821,2]
[348102434,1736313044278,-500.0,0.00010821,2]
[348102435,1736313044287,-805.68,0.00010821,2]
[348102436,1736313044297,-154.374238,0.00010918,2]
[348102437,1736313044306,-1270.12,0.00010958,2]
[348102438,1736313044315,-150.0,0.00010997,2]
[348102439,1736313044325,-550.0,0.00011,2]
[348102440,1736313044334,-150.0,0.00011047,2]
[348102441,1736313044344,-154.374238,0.00011067,2]
[348102442,1736313044354,-500.0,0.00011094,2]
[348102443,1736313044365,-500.0,0.00011094,2]
[348102444,1736313044375,-500.0,0.00011094,2]
[348102445,1736313044384,-500.0,0.00011094,2]
[348102446,1736313044393,-500.0,0.00011094,2]
[348102447,1736313044403,-500.0,0.00011094,2]
[348102448,1736313044412,-500.0,0.00011094,2]
[348102449,1736313044421,-500.0,0.00011094,2]
[348102450,1736313044430,-500.0,0.00011094,2]
[348102451,1736313044442,-500.0,0.00011094,2]
[348102452,1736313044453,-500.0,0.00011094,2]
[348102453,1736313044463,-436.54527382,0.00011094,2]
[348102454,1736313044472,-500.0,0.00011094,2]
[348102455,1736313044481,-500.0,0.00011094,2]
[348102456,1736313044490,-500.0,0.00011094,2]
[348102457,1736313044499,-500.0,0.00011094,2]
[348102458,1736313044507,-173.59984924,0.00011094,2]
[348102459,1736313044516,-500.0,0.00011094,2]
[348102460,1736313044526,-500.0,0.00011094,2]
[348102461,1736313044535,-1365.27,0.00011094,2]
[348102462,1736313044544,-500.0,0.00011094,2]
[348102463,1736313044553,-576.44,0.00011094,2]
[348102464,1736313044562,-500.0,0.00011094,2]
[348102465,1736313044572,-500.0,0.00011094,2]
[348102466,1736313044581,-223.03,0.00011094,2]
[348102467,1736313044590,-500.0,0.00011094,2]
[348102468,1736313044599,-154.374238,0.00011094,2]
[348102469,1736313044608,-154.374238,0.00011094,2]
[348102470,1736313044619,-303.37028889,0.00011094,2]
[348102471,1736313044629,-500.0,0.00011094,2]
[348102472,1736313044638,-500.0,0.00011095,2]
[348102473,1736313044647,-500.0,0.00011095,2]
[348102474,1736313044656,-839.05,0.00011095,2]
[348102475,1736313044665,-500.0,0.00011095,2]
[348102476,1736313044675,-1852.6,0.00011095,2]
[348102477,1736313044685,-1038.86,0.00011095,2]
[348102478,1736313044695,-500.0,0.00011095,2]
[348102479,1736313044705,-733.39,0.00011095,2]
[348102480,1736313044714,-500.0,0.00011095,2]
[348102481,1736313044723,-500.0,0.00011095,2]
[348102482,1736313044732,-641.31543828,0.00011095,2]
[348102483,1736313044741,-500.0,0.00011095,2]
[348102484,1736313044751,-500.0,0.00011095,2]
[348102485,1736313044759,-974.19,0.00011095,2]
[348102486,1736313044769,-500.0,0.00011095,2]
[348102487,1736313044778,-267.51524312,0.00011095,2]
[348102488,1736313044794,-965.39475688,0.00011095,2]
[348102489,1736313044803,-176.87079402,0.00011095,2]
[348102490,1736313044814,-2493.1,0.00011095,2]
[348102491,1736313044825,-75.71920598,0.00011095,2]
[348102492,1736313044834,-432.3586938,0.00011095,2]
[348102493,1736313044846,-67.6413062,0.00011095,2]
[348102494,1736313044856,-424.20677637,0.00011095,2]
[348102495,1736313044869,-75.79322363,0.00011095,2]